Cogmind - Beta 13 @@@ ROGUE MODE // 2024.07.02 @ 10:37:42 Player: Brananarchy Result: Destroyed by G-34 Mercenary with Small Laser Performance ------------- Evolutions (1) 500 Regions Visited (2) 400 Robots Destroyed (25) 125 Value Destroyed (648) 648 Prototype IDs (0) 0 Alien Tech Used (0) 0 Bonus (22) 22 TOTAL SCORE: 1695 Bonus ------- High Alert Combat Kills 22 Cogmind --------- Core Integrity 0/400 Matter 135/300 Energy 100/100 System Corruption 0% Temperature Cool (12) Movement Core (50) Location -9/Materials Parts ------- > --- POWER (1) -------- (None) > --- PROPULSION (2) --- (None) > --- UTILITY (2) ------ Improved Terrain Scanner Targeting Computer > --- WEAPON (4) ------- (None) > --- INVENTORY (5) ---- Large Matter Pod (150) Peak State ------------ > --- POWER ------------ Improved Ion Engine > --- PROPULSION ------- Aluminum Leg Improved Aluminum Leg > --- UTILITY ---------- Improved Terrain Scanner Targeting Computer > --- WEAPON ----------- Small Laser Small Laser Assault Rifle Rocket Launcher > --- INVENTORY -------- Aluminum Leg Aluminum Leg Large Matter Pod Assault Rifle Datajack [Rating: 14] Favorites ----------- Power Light Ion Engine Engine Light Ion Engine Propulsion Aluminum Leg Leg Aluminum Leg Utility Improved Terrain Scanner Device Improved Terrain Scanner Processor Targeting Computer Weapon Small Laser Energy Gun Small Laser Ballistic Gun Assault Rifle Launcher Rocket Launcher Special Melee Weapon Datajack Build | -11 -10 -9 ------- Run | Yrd Mat Mat Slots Evolved 2 | . . 2 Power . | . . . Propulsion . | . . . Utility . | . . . Weapon 2 | . . 2 Parts Attached 18 | 7 2 9 Power 2 | 1 . 1 Engine 2 | 1 . 1 Core . | . . . Reactor . | . . . Propulsion 6 | 3 . 3 Treads . | . . . Leg 6 | 3 . 3 Wheel . | . . . Hover . | . . . Flight . | . . . Utility 2 | 1 1 . Device 1 | 1 . . Storage . | . . . Processor 1 | . 1 . Hackware . | . . . Protection . | . . . Artifact . | . . . Weapon 8 | 2 1 5 Energy Gun 2 | 1 . 1 Energy Cannon . | . . . Ballistic Gun 4 | 1 1 2 Ballistic Cannon . | . . . Launcher 1 | . . 1 Special Weapon . | . . . Impact Weapon . | . . . Slashing Weapon . | . . . Piercing Weapon . | . . . Special Melee Weapon 1 | . . 1 Unidentified Prototypes . | . . . Parts Lost 12 | . . 12 Power 2 | . . 2 Propulsion 4 | . . 4 Utility . | . . . Weapon 6 | . . 6 Highest Loss Streak 11 | . . 11 To Critical Strikes . | . . . Average Slot Usage (%) 88 | . 92 86 Engine 9 | . 14 7 Leg 22 | . 28 19 Device 11 | . 14 11 Processor 9 | . 7 11 Energy Gun 16 | . 14 18 Ballistic Gun 14 | . 14 14 Launcher 2 | . . 3 Naked Turns . | . . . Heaviest Build 16 | 7 7 16 Greatest Support 23 | 20 20 23 Greatest Overweight (x) . | . . . Average Overweight (x) . | . . . Largest Inventory Capacity 5 | 5 5 5 Average Capacity 5 | 5 5 5 Most Carried 5 | 2 5 5 Average Carried 3 | . 3 4 Final Capacity 5 | 5 5 5 Final Carried 5 | 2 5 1 Class Distribution -------------------- 62% | Mutant 28% | Scavenger-Gunner 8% | Gunner Dominant Class ---------------- Mutant | -10/Materials Scavenger-Gunner | -9/Materials Resources | -11 -10 -9 ----------- Run | Yrd Mat Mat Matter Collected 571 | 291 35 245 Remotely . | . . . Salvage Created 738 | 77 51 610 Parts 56 | 3 7 46 Haulers Intercepted . | . . . Recyclers Shooed 1 | . . 1 Parts Field Recycled . | . . . Retrieved Matter . | . . . Parts Self-Destructed . | . . . Prevented . | . . . Kills | -11 -10 -9 ------- Run | Yrd Mat Mat Combat Hostiles Destroyed 18 | 1 3 14 Guns 10 | 1 3 6 AOE 8 | . . 8 Classes Destroyed 9 | 2 2 5 Builder 1 | . . 1 Tunneler 1 | 1 . . Recycler 1 | . . 1 Operator 1 | . 1 . Watcher 3 | . . 3 Swarmer 6 | . 3 3 Grunt 6 | 1 . 5 Duelist 1 | . . 1 Sentry 5 | . . 5 Best Kill Streak 14 | 2 3 14 Combat Bots Only 9 | 1 3 9 Max Kills in Single Turn 4 | 1 1 4 Gunslinging . | . . . Exploded 2 | . . 2 Melee . | . . . Uniques/NPCs Destroyed . | . . . Combat | -11 -10 -9 -------- Run | Yrd Mat Mat Hostile Shots Fired 164 | 10 7 147 Missed 37 | 2 1 34 Damage Taken 1473 | 91 46 1336 Core 431 | 12 18 401 Absorbed by Shields . | . . . Core Remaining (%) 91 | 95 88 . Volleys Fired 43 | 7 5 31 Largest 4 | 2 2 4 Hottest 133 | 60 60 133 Shots Fired 114 | 14 10 90 Gun 104 | 14 10 80 Cannon . | . . . Launcher 10 | . . 10 Special . | . . . Kinetic 52 | 7 5 40 Thermal 52 | 7 5 40 Explosive 10 | . . 10 Electromagnetic . | . . . Robot Hit Streak 10 | 3 6 10 Robot Miss Streak 9 | 2 3 9 Penetration Max . | . . . Secondary Targets 1 | . . 1 Max Gunslinging Chain 1 | . . 1 Shots Hit Robots 66 | 9 5 52 Core Hits 40 | 3 5 32 Critical Kills . | . . . Critical Parts Destroyed . | . . . Critical Strikes . | . . . Melee Attacks . | . . . Impact . | . . . Slashing . | . . . Piercing . | . . . Sneak Attacks . | . . . Combat Hostiles . | . . . Follow-up Attacks . | . . . Damage Inflicted 1810 | 116 71 1623 Guns 796 | 116 71 609 Cannons . | . . . Explosions 1014 | . . 1014 Melee . | . . . Ramming . | . . . Kinetic 433 | 49 50 334 Thermal 363 | 67 21 275 Explosive 1014 | . . 1014 Electromagnetic . | . . . Impact . | . . . Slashing . | . . . Piercing . | . . . Highest Corruption . | . . . Average Corruption . | . . . Corruption Purged . | . . . Corruption Blocked . | . . . Overload Shots . | . . . Overflow Damage 39 | . . 39 Projectiles . | . . . Explosions 39 | . . 39 Melee . | . . . Knockbacks . | . . . Impact . | . . . Kinetic . | . . . Secondary . | . . . Self-Inflicted Damage 71 | . . 71 Shots 3 | . . 3 Rammed . | . . . Targets Rammed . | . . . Kicked . | . . . Crushed . | . . . Highest Temperature 480 | 48 . 480 Average Temperature 186 | 27 . 215 Received Heat Transfer 633 | 48 . 585 Effects 1 | . . 1 Short Circuit 1 | . . 1 Siege Activations . | . . . Robots Corrupted . | . . . Combat Hostiles . | . . . Parts Fried . | . . . Impact Corruptions . | . . . Robots Melted . | . . . Combat Hostiles . | . . . Parts Melted 1 | 1 . . Heat Transferred 825 | 150 50 625 Parts Sabotaged . | . . . Parts Stolen . | . . . Parts Stripped . | . . . Power Chain Reactions . | . . . Alert | -11 -10 -9 ------- Run | Yrd Mat Mat Peak Influence 530 | 25 91 530 Initial 38 | . 16 38 Average 131 | 6 47 231 Maximum Alert Level 2 | . . 2 Low Security (%) 82 | 100 100 66 Level 1 4 | . . 8 Level 2 12 | . . 25 Level 3 . | . . . Level 4 . | . . . Level 5 . | . . . High Security . | . . . Max Security . | . . . Squads Dispatched 1 | . . 1 Investigation . | . . . Extermination . | . . . Reinforcement 1 | . . 1 Assault . | . . . Garrison . | . . . Intercept . | . . . Searches Triggered . | . . . Construction Impeded 1 | . . 1 Haulers Reinforced . | . . . Active Scanning Responses . | . . . Cargo Convoy Interrupts . | . . . Stealth | -11 -10 -9 --------- Run | Yrd Mat Mat Distress Signals 3 | . . 3 Communications Jammed . | . . . Distress Signals . | . . . Times Spotted 27 | 1 4 22 Peak Tracking Total 8 | 1 2 8 Tactical Retreats . | . . . Traps | -11 -10 -9 ------- Run | Yrd Mat Mat Traps Triggered . | . . . Indirectly . | . . . Trap Hack Attempts . | . . . Triggered . | . . . Disarmed . | . . . Reprogrammed . | . . . Reused . | . . . Traps Extracted . | . . . Installed . | . . . Triggered . | . . . Machines | -11 -10 -9 ---------- Run | Yrd Mat Mat Machines Disabled 3 | . . 3 Max in Single Turn 1 | . . 1 Machines Repaired . | . . . Machines Dismantled . | . . . Machines Sabotaged . | . . . Overloaded Fab Kills . | . . . Hacking | -11 -10 -9 --------- Run | Yrd Mat Mat Machines Accessed 1 | . 1 . Terminals 1 | . 1 . Fabricators . | . . . Repair Stations . | . . . Recycling Units . | . . . Scanalyzers . | . . . Garrison Access . | . . . Total Hacks 1 | . 1 . Successful . | . . . Failed 1 | . 1 . Catastrophic . | . . . Database Lockouts . | . . . Manual . | . . . Terminals 1 | . 1 . Fabricators . | . . . Repair Stations . | . . . Recycling Units . | . . . Scanalyzers . | . . . Garrison Access . | . . . Terminal Hacks . | . . . Fabricator Hacks . | . . . Repair Station Hacks . | . . . Recycling Unit Hacks . | . . . Scanalyzer . | . . . Garrison Access Hacks . | . . . Unauthorized Hacks . | . . . Terminals . | . . . Fabricators . | . . . Repair Stations . | . . . Recycling Units . | . . . Scanalyzers . | . . . Garrison Access . | . . . Data Cores Recovered 1 | . 1 . Used 1 | . 1 . Hacking Detections . | . . . Full Trace Events . | . . . Feedback Events . | . . . Feedback Blocked . | . . . Robot Schematics Acquired . | . . . Robots Built . | . . . Authchips . | . . . Time . | . . . Total Robot Build Rating . | . . . Part Schematics Acquired . | . . . Parts Built . | . . . Authchips . | . . . Time . | . . . Total Part Build Rating . | . . . Parts Repaired . | . . . Time . | . . . Parts Recycled . | . . . Recycled Matter . | . . . Retrieved Matter . | . . . Retrieved Components . | . . . Parts Scanalyzed . | . . . Part Schematics Acquired . | . . . Parts Damaged . | . . . Bothacking | -11 -10 -9 ------------ Run | Yrd Mat Mat Used RIF Installer . | . . . Robots Hacked . | . . . Non-combat . | . . . Combat . | . . . Robot Hacks Applied . | . . . Relay Couplers Released . | . . . Fabnet Peak Effective % . | . . . Robots Rewired . | . . . Allies Hacked . | . . . Hacks Repelled . | . . . Allies | -11 -10 -9 -------- Run | Yrd Mat Mat Total Allies . | . . . Largest Group . | . . . Highest-Rated Group . | . . . Highest-Rated Ally . | . . . Total Orders . | . . . Ally Attacks . | . . . Total Damage . | . . . Kills . | . . . Allies Corrupted . | . . . Allies Melted . | . . . Intel | -11 -10 -9 ------- Run | Yrd Mat Mat Robot Analysis Total . | . . . Derelict Logs Recovered . | . . . Drone Launches . | . . . Drone Recoveries . | . . . Exploration | -11 -10 -9 ------------- Run | Yrd Mat Mat Turns Passed 481 | 110 127 244 Spaces Moved 263 | 76 89 98 Core 19 | 19 . . Treads . | . . . Legs 244 | 57 89 98 Wheels . | . . . Hover . | . . . Flight . | . . . Fastest Speed 50 | 50 120 120 Average Speed 114 | 102 120 120 Slowest Speed 120 | 120 120 120 Overloaded Moves . | . . . Propulsion Burnouts . | . . . Robots Hopped . | . . . Cave-ins Triggered . | . . . Exploration Rate (%) 15 | 7 19 20 Regions Visited 2 Branch Regions . Pre-discovered Areas . | . . . Known Exits Taken . | . . . Unknown Exits Taken 2 | 1 1 . Scrap Searched . | . . . Spaces Dug . | . . . Terrain Destroyed 85 | . . 85 Melee . | . . . Projectile . | . . . AOE 85 | . . 85 Terrain Rammed . | . . . Walls Destroyed . | . . . Machines Disabled . | . . . Actions | -11 -10 -9 --------- Run | Yrd Mat Mat Total 353 | 90 99 164 Wait 21 | . . 21 Move 261 | 75 88 98 Hop . | . . . Pick Up 7 | 1 3 3 Fast Attach 9 | 6 1 2 Attach 6 | . . 6 Detach . | . . . Swap 3 | 1 1 1 Drop 3 | . 1 2 Fire 43 | 7 5 31 Melee . | . . . Ram . | . . . Kick . | . . . Crush . | . . . Escape Stasis . | . . . Rewire . | . . . Trap . | . . . Miscellaneous . | . . . Route ------- -11/Scrapyard -10/Materials -9/Materials History --------- Turn | Location | Event 2 | -11/Scrapyard | Met Revision 17 60 | -11/Scrapyard | Discovered new exit (range 8) 111 | -11/Scrapyard | Entered Materials 233 | -10/Materials | Discovered new exit (range 3) 238 | -10/Materials | Entered another Materials area 238 | -9/Materials | Evolved 2 slots: Weapon x2 460 | -9/Materials | Core integrity fell below 50% 469 | -9/Materials | Destroyed 9 combat bots 473 | -9/Materials | Core integrity fell below 20% 482 | -9/Materials | Destroyed by G-34 Mercenary with Small Laser Last Messages --------------- U-05 Engineer lays Concrete. U-05 Engineer builds a Wall. The unstable cave ceiling collapses. U-05 Engineer lays Concrete. Aluminum Leg destroyed. U-05 Engineer lays Concrete. U-05 Engineer builds a Wall. U-05 Engineer lays Concrete. U-05 Engineer builds a Wall. U-05 Engineer lays Concrete. The unstable cave ceiling collapses. U-05 Engineer lays Concrete. G-47 Trooper destroyed. U-05 Engineer lays Concrete. U-05 Engineer builds a Door. U-05 Engineer lays Concrete. U-05 Engineer builds a Wall. U-05 Engineer lays Concrete. U-05 Engineer builds a Wall. U-05 Engineer lays Concrete. Map ----- +----------------------------------------------------+ | ?????????????????????????????????????????????????? | | ?????????????????????????????????????????????????? | | ?????????????????????????????????????????????????? | | ?????????????????????????????????????????????????? | | ?????????????????????????????????????????????????? | | ?????????????????????????????????????????????????? | | ?????????????????????????????????????????????????? | | ?????????????????????????????????????????????????? | | ?????????????????????????????????????????????????? | | ?????????????????????????????????????????????????? | | ?????????????????????????????????????????????????? | | ?????????????????????#?????? ???????????????????? | | ??????????????????????????? #?????????????????? | | ??????????????????????????? #?????????????????? | | ??????????????????????????? #??###????????????? | | ????????????????#?????????? ?? ?????????????? | | ????????????????????#####?? ## ""????????????? | | ??????????????? ?? #?# # [R????????????? | | ???????????????"" """ #? * ""#??????????? | | ???????????????"" """ #? %* #??????????? | | ?????????????? "T """ =#? % ??????????? | | ?????????????? "" """ #? #u #####?????????? | | ?????????????? "" """ ## = ?????????? | | ???????????#?#? [# %g [ * ????????? | | ???????# ########## # % =g u =% ????????? | | ???????# @== # = #?????????? | | ???????+ #%% # = #?????????? | | ???????# # #?????????? | | ???????# ??????????? | | ???????? ## #?????????? | | ???????? % ]]! ??????????? | | ?????????+############ =#]]! ! ??????????? | | ??????????????# # u#]]! ???????????? | | ??????? ?????# """ + # ???????????? | | ??????????????# """ # # ????????????? | | ?????? ???????# """ # # = ????????????? | | ????????#?????# ? # ## # ?????????????? | | ????????? ?????????"?# #?## # # ?????????????? | | ????????????"?#???""?# #??? ???????????????? | | ????? ????????# ????# #???""??????????????????? | | ?#????????????# ? # #???????????????????????? | | ??????????????# """ # # """""????????????????? | | ??????????????# """ / + #??????????????? | | ??????????????# """ # # """"" ???????????????? | | #?????????????# ? # #??"""""????????????????? | | #########+############ #????"??????????????????? | | # #???????????????????????? | | # #???????????????????????? | | # #???????????????????????? | | + ###+#############+####??#????????????????????? | +----------------------------------------------------+ Best States ------------- Heat Dissipation 28 Energy Generation 12 Energy Capacity 265 Matter Stores 300 Matter Capacity 300 Sight Range 16 Terrain Scan Range 16 Terrain Scan Density 10 Evasion (%) 55 Targeting Accuracy 5 Item Schematics ----------------- None Robot Schematics ------------------ None Fabricated ------------ Nothing Alien Tech Used ----------------- None Achievements -------------- Dynamic Key Challenges ------------ None Game ------ Seed LauncherPrecisionField Manual? 0 Play Time 00:12:39 Cumulative 1.8 hours Start 2024.07.02 @ 10:26:03 End 2024.07.02 @ 10:37:42 Sessions 1 Manual Loads 0 Difficulty Rogue Special Mode None Game No. 3 Rogue 3 Adventurer 0 Explorer 0 Win Type - Total 0 Types 0/0/0/0/0/0/0/0/0 Lore% 0 Gallery% 5 Achievement% 7 Wizard Run 0 Options --------- Layout 1 ASCII 0 Keyboard 0 Movement Mouse Keybinds 0 Fullscreen 2 Font 48/Proggy Map View 50x35 Zoom Use 0% Tactical HUD 0 Map Filters NONE Filters NONE Steam 1 RUN: b8e12a8d-75eb-4914-86a2-a94135850188